bitfinex/quotes_SOLUSD_20240624
["timestamp","ask_amount","ask_price","bid_price","bid_amount"]
[1719259611145,19.4247,128.71,128.58,16.1842]
[1719259611818,7.7737,128.64,128.58,16.1842]
[1719259612023,19.4281,128.68,128.58,16.1842]
[1719259612322,7.7761,128.6,128.52,22.2287]
[1719259612534,7.7766,128.59,128.52,22.2287]
[1719259612841,19.4327,128.65,128.52,22.2287]
[1719259613139,7.7746,128.63,128.52,30.0094]
[1719259613436,0.17,128.67,128.52,22.2287]
[1719259613638,19.4329,128.65,128.52,22.2287]
[1719259613830,0.34,128.64,128.52,22.2287]
[1719259614232,7.7766,128.59,128.52,22.2287]
[1719259614439,7.7774,128.58,128.52,22.2287]
[1719259614629,7.7779,128.57,128.52,22.2287]
[1719259614827,19.4371,128.62,128.52,22.2287]
[1719259615141,0.34,128.61,128.52,22.2287]
[1719259615335,38.8661,128.65,128.52,22.2287]
[1719259615532,19.4325,128.66,128.52,22.2287]
[1719259615722,0.17,128.65,128.52,22.2287]
[1719259615922,7.7761,128.6,128.52,22.2287]
[1719259616526,7.7766,128.59,128.52,22.2287]
[1719259617343,7.776,128.6,128.52,22.2287]
[1719259618022,19.4291,128.68,128.52,22.2287]
[1719259618220,19.4291,128.68,128.53,0.34]
[1719259618221,7.7743,128.63,128.53,0.34]
[1719259618420,7.7741,128.64,128.53,28.1199]
[1719259618617,19.4321,128.66,128.53,0.17]
[1719259618822,19.4321,128.66,128.52,22.2287]
[1719259619534,7.7749,128.62,128.52,22.2287]
[1719259619743,7.7743,128.63,128.53,0.17]
[1719259620329,19.4321,128.66,128.52,22.2287]
[1719259620741,7.7773,128.58,128.52,22.2287]
[1719259621140,38.8654,128.65,128.52,22.2287]
[1719259621141,19.438,128.62,128.52,22.2287]
[1719259621343,58.2986,128.65,128.52,22.2287]
[1719259621634,7.7789,128.56,128.52,22.2287]
[1719259621840,19.4395,128.61,128.52,15.7571]
[1719259622151,19.4395,128.61,128.48,6.3506]
[1719259622152,7.7801,128.54,128.48,6.3506]
[1719259622328,30.1654,128.6,128.48,6.3506]
[1719259622532,19.4456,128.57,128.48,6.3506]
[1719259622853,0.34,128.56,128.48,6.3506]
[1719259623142,7.7815,128.51,128.48,6.3506]
[1719259623444,0.34,128.56,128.48,6.3506]
[1719259623645,6.4154,128.6,128.48,6.3506]
[1719259623851,7.7778,128.58,128.48,6.3506]
[1719259624022,8.10567109,128.67,128.48,37.0906]
[1719259624230,7.7742,128.63,128.52,27.2314]
[1719259624532,7.7743,128.63,128.53,20.0]
[1719259624733,7.775,128.62,128.54,0.17]
[1719259625047,8.10169312,128.67,128.53,20.0]
[1719259625219,7.7718,128.67,128.55,6.2255]
[1719259625537,29.504,128.75,128.56,39.4453]
[1719259625729,24.42566932,128.73,128.56,39.4453]
[1719259625923,7.7705,128.7,128.59,7.7766]
[1719259626125,7.771,128.69,128.57,0.34]
[1719259626330,7.77,128.7,128.59,7.776]
[1719259626535,14.19279221,128.75,128.6,0.17]
[1719259626744,6.094,128.75,128.6,0.17]
[1719259626948,7.7706,128.69,128.6,0.17]
[1719259627126,19.4199,128.74,128.6,0.17]
[1719259627127,7.77,128.7,128.6,0.17]
[1719259627336,7.77,128.7,128.6,7.9458]
[1719259627535,7.7729,128.66,128.56,30.74]
[1719259627743,7.7707,128.69,128.58,7.7767]
[1719259627946,30.74,128.74,128.59,0.17]
[1719259628121,19.4233,128.72,128.57,20.0]
[1719259628321,19.4233,128.72,128.56,20.0]
[1719259628627,30.74,128.74,128.57,19.4443]
[1719259628832,50.1596,128.74,128.58,20.0]
[1719259629153,38.8479,128.71,128.55,6.2255]
[1719259629445,30.74,128.74,128.55,6.2255]
[1719259629446,7.7753,128.62,128.55,6.2255]
[1719259630447,89.0157,128.7,128.55,6.2255]
[1719259630666,7.7731,128.65,128.55,6.2255]
[1719259630950,7.7737,128.64,128.55,6.2255]
[1719259631127,0.34,128.69,128.55,6.2255]
[1719259631128,7.7749,128.62,128.55,6.2255]
[1719259631324,7.7742,128.63,128.55,6.2255]
[1719259631651,19.4288,128.68,128.55,6.2255]
[1719259631831,0.34,128.67,128.55,6.2255]
[1719259632338,7.7736,128.64,128.55,6.2255]
[1719259632721,7.7737,128.64,128.56,0.17]
[1719259632926,7.7748,128.62,128.55,6.2255]
[1719259633445,7.7746,128.63,128.55,6.2255]
[1719259633650,19.7701,128.67,128.55,6.2255]
[1719259633859,7.7726,128.66,128.55,6.2255]
[1719259634157,7.77,128.7,128.6,7.776]
[1719259634333,7.7699,128.71,128.61,7.7753]
[1719259634865,53.02835613,128.75,128.55,6.2255]
[1719259635029,53.02835613,128.75,128.56,39.7852]
[1719259635224,7.7704,128.7,128.6,7.7759]
[1719259635428,7.7719,128.67,128.58,19.4426]
[1719259635731,19.4207,128.73,128.6,16.2648]
[1719259636156,53.02835613,128.75,128.6,16.2648]
[1719259636157,19.424,128.71,128.6,16.2648]
[1719259636461,7.7732,128.65,128.6,16.2648]
[1719259636744,7.7736,128.64,128.6,16.2648]
[1719259637145,19.4272,128.69,128.55,22.4903]
[1719259637325,0.34,128.68,128.56,0.17]
[1719259637526,53.02835613,128.75,128.56,0.17]
[1719259637728,7.7704,128.7,128.6,7.7756]
[1719259638025,64.3478,128.75,128.61,27.945]
[1719259638026,7.7695,128.71,128.61,27.945]
[1719259638433,25.5125,128.75,128.61,27.945]
[1719259638434,7.7688,128.72,128.63,22.5964]
[1719259638849,7.7677,128.74,128.64,0.17]
[1719259639146,28.38446141,128.78,128.64,0.17]
[1719259639147,7.7671,128.75,128.65,7.7729]
[1719259639321,0.8768476,128.91,128.69,4.1406]
[1719259639532,0.8768476,128.91,128.77,30.74]
[1719259639828,0.8768476,128.91,128.82,30.74]
[1719259640030,0.8768476,128.91,128.85,19.4011]
[1719259640331,0.8768476,128.91,128.84,30.74]
[1719259640332,0.8768476,128.91,128.86,0.77563052]
[1719259640642,0.8768476,128.91,128.88,19.3976]
[1719259640953,0.8768476,128.91,128.87,30.91]
[1719259641161,0.8768476,128.91,128.84,16.4634]
[1719259641470,0.8768476,128.91,128.79,27.1743]
[1719259641637,0.8768476,128.91,128.83,7.7618]
[1719259641842,0.8768476,128.91,128.84,20.17]
[1719259642038,0.8768476,128.91,128.87,7.7595]
[1719259642271,36.9375,129.05,128.89,7.758]
[1719259642451,7.7514,129.01,128.88,19.3974]
[1719259642760,7.7514,129.01,128.89,0.17]
[1719259642971,36.9375,129.05,128.89,28.0984]
[1719259643169,7.7488,129.06,128.89,120.34]
[1719259643463,16.1975,129.11,128.91,50.1319]
[1719259643640,30.74,129.12,129.0,19.3787]
[1719259643841,0.8768476,129.17,129.05,30.74]
[1719259644045,0.8768476,129.17,129.03,19.3742]
[1719259644351,0.8768476,129.17,129.01,16.6334]
[1719259644533,7.7485,129.06,129.02,31.003289]
[1719259644738,19.3674,129.09,129.02,31.003289]
[1719259644935,19.3674,129.09,128.95,2.30179415]
[1719259644936,19.3725,129.05,128.95,2.30179415]
[1719259645154,6.1975,129.09,128.87,30.74]
[1719259645362,10.0,129.08,128.93,30.74]
[1719259645541,6.1975,129.09,128.87,32.92630711]
[1719259645542,7.7526,128.99,128.87,32.92630711]
[1719259645746,19.3715,129.06,128.87,32.92630711]
[1719259645958,0.34,129.05,128.88,30.74]
[1719259646157,7.7524,129.0,128.88,30.74]
[1719259646341,19.3749,129.04,128.86,16.4634]
[1719259646536,7.7543,128.97,128.86,16.4634]
[1719259646740,19.3785,129.01,128.87,30.74]
[1719259646940,0.34,129.0,128.87,30.74]
[1719259647241,7.7537,128.97,128.87,30.74]
[1719259647458,7.7528,128.99,128.87,30.74]
[1719259647646,19.3771,129.02,128.87,30.74]
[1719259647647,7.7531,128.98,128.87,30.74]
[1719259647857,7.7531,128.98,128.88,20.17]
[1719259648039,19.3771,129.02,128.88,20.17]
[1719259648245,7.7535,128.98,128.88,20.17]
[1719259648864,200.8768476,129.17,128.88,20.17]
[1719259648865,7.7526,128.99,128.88,39.5669]
[1719259649173,19.3754,129.03,128.88,20.17]
[1719259649375,19.3754,129.03,128.88,20.0]
[1719259649552,19.3754,129.03,128.87,30.74]
[1719259650059,7.752,129.0,128.89,7.7585]
[1719259650262,7.752,129.0,128.87,30.74]
[1719259650263,7.7538,128.97,128.87,30.74]
[1719259650447,0.17,129.01,128.87,30.74]
[1719259650856,0.17,129.01,128.84,19.4038]
[1719259651065,0.17,129.01,128.79,16.5138]
[1719259651066,7.7597,128.87,128.85,19.378]
[1719259651255,50.2886,129.01,128.85,19.378]
[1719259651445,8.10320281,129.0,128.79,16.5138]
[1719259651646,8.10320281,129.0,128.79,139.9238]
[1719259651852,8.10320281,129.0,128.9,7.7578]
[1719259652161,7.7503,129.03,128.91,19.3922]
[1719259652356,19.3681,129.08,128.91,50.1322]
[1719259652876,8.09669446,129.09,128.82,161.48]
[1719259653062,8.09669446,129.09,128.87,30.74]
[1719259653370,30.74,129.06,128.83,2.18698593]
[1719259653573,30.74,129.06,128.83,22.18698593]
[1719259653952,0.34,129.05,128.85,27.1625]
[1719259654279,0.34,129.05,128.85,19.4017]
[1719259654768,0.34,129.05,128.85,27.1621]
[1719259654978,0.34,129.05,128.83,2.18698593]
[1719259654979,15.5887,129.04,128.83,2.18698593]
[1719259655177,15.5887,129.04,128.82,30.74]
[1719259655178,16.0834,129.01,128.82,30.74]
[1719259655351,30.74,128.98,128.76,50.1559]
[1719259655555,30.74,128.98,128.79,47.2538]
[1719259655756,0.34,128.97,128.79,47.2538]
[1719259655969,39.1108,128.97,128.79,47.2538]
[1719259656178,7.7606,128.86,128.79,16.5138]
[1719259656376,19.3912,128.93,128.76,30.74]
[1719259656583,7.7622,128.83,128.76,31.060533]
[1719259656876,7.7622,128.83,128.72,16.6663]
[1719259656877,7.7637,128.81,128.72,16.6663]
[1719259657171,7.7625,128.83,128.72,36.0618]
[1719259657379,19.3999,128.87,128.72,36.0618]
[1719259657380,0.34,128.86,128.72,36.0618]
[1719259657674,7.7627,128.83,128.72,36.0618]
[1719259657875,6.1079,128.89,128.72,36.0618]
[1719259657876,6.1079,128.89,128.75,7.7667]
[1719259658081,0.17,128.88,128.73,19.42]
[1719259658269,6.1079,128.89,128.74,30.74]
[1719259658454,7.7603,128.86,128.75,7.7664]
[1719259658660,7.7596,128.88,128.76,0.34]
[1719259658861,6.1079,128.89,128.74,30.74]
[1719259659178,7.761,128.85,128.74,7.7673]
[1719259659489,19.7381,128.88,128.72,36.0618]
[1719259659655,7.761,128.85,128.73,19.42]
[1719259659858,6.1079,128.89,128.76,7.7661]
[1719259660167,25.5044,128.89,128.73,19.42]
[1719259660486,7.7634,128.81,128.72,36.0618]
[1719259660658,7.7636,128.81,128.72,36.0618]
[1719259660863,7.7633,128.82,128.72,36.0618]
[1719259661175,6.1079,128.89,128.72,55.4837]
[1719259661373,7.7628,128.82,128.72,36.0618]
[1719259661756,7.7622,128.83,128.72,36.0618]
[1719259661955,19.3994,128.87,128.72,36.0618]
[1719259662265,19.4036,128.85,128.68,2.39525293]
[1719259662457,7.7665,128.76,128.68,2.39525293]
[1719259662661,30.74,128.83,128.67,31.083989]
[1719259662662,19.4098,128.81,128.67,31.083989]
[1719259662979,19.4098,128.81,128.66,16.0954]
[1719259662980,8.11015779,128.79,128.66,16.0954]
[1719259663288,7.7658,128.77,128.66,46.8354]
[1719259663474,0.17,128.8,128.66,46.8354]
[1719259663674,8.10720644,128.81,128.66,77.5754]
[1719259663871,38.8082,128.84,128.66,46.8354]
[1719259664377,7.7646,128.79,128.67,27.7715]
[1719259664565,46.91452738,128.84,128.67,20.0]
[1719259664763,46.91452738,128.84,128.66,46.8354]
[1719259664964,19.4057,128.83,128.66,46.8354]
[1719259665188,7.7656,128.78,128.66,54.6077]
[1719259665491,0.34,128.82,128.69,7.7704]
[1719259665492,7.7639,128.81,128.69,7.7704]
[1719259665660,7.7646,128.79,128.67,7.9417]
[1719259665989,7.764,128.8,128.69,7.7705]
[1719259666283,27.51132738,128.84,128.68,19.4265]
[1719259666471,8.10632738,128.84,128.71,19.4233]
[1719259666671,8.10632738,128.84,128.72,0.34]
[1719259666889,7.7616,128.84,128.72,20.34]
[1719259667084,7.7616,128.84,128.72,28.1083]
[1719259667283,42.92169448,128.93,128.74,19.4188]
[1719259667284,8.10257003,128.89,128.74,19.4188]
[1719259667488,7.7598,128.87,128.75,20.34]
[1719259667787,8.10257003,128.89,128.76,0.17]
[1719259667977,7.7603,128.87,128.76,0.34]
[1719259668280,8.10257003,128.89,128.76,0.34]
[1719259668870,8.10257003,128.89,128.78,7.765]
[1719259669080,8.10257003,128.89,128.79,7.9345]
[1719259669414,4.13939448,128.93,128.79,7.9345]
[1719259669415,4.13939448,128.93,128.79,0.34]
[1719259669570,4.13939448,128.93,128.81,27.1698]
[1719259669772,7.7568,128.92,128.81,19.4071]
[1719259669985,4.13939448,128.93,128.82,7.9327]
[1719259670776,11.89609448,128.93,128.83,0.17]
[1719259670978,4.13939448,128.93,128.83,7.932]
[1719259671302,19.3837,128.98,128.84,0.17]
[1719259671469,8.09578477,128.99,128.84,19.5734]
[1719259671800,25.7701,129.02,128.85,0.17]
[1719259671801,7.7544,128.96,128.85,0.17]
[1719259671982,38.7608,129.0,128.84,0.17]
[1719259672182,7.7556,128.94,128.83,0.34]
[1719259672398,19.3839,128.98,128.83,0.34]
[1719259672571,19.3839,128.98,128.83,8.1021]
[1719259672884,19.3839,128.98,128.83,0.34]
[1719259673086,7.7549,128.95,128.84,19.4037]
[1719259673284,8.09471985,129.01,128.83,0.34]
[1719259673285,7.7558,128.94,128.85,0.17]
[1719259673475,19.3809,129.0,128.85,0.17]
[1719259673682,7.7554,128.95,128.85,0.17]
[1719259674083,7.7555,128.94,128.84,0.17]
[1719259674690,7.7568,128.92,128.82,30.74]
[1719259674875,62.1705,129.0,128.8,27.1728]
[1719259675076,23.41,128.97,128.77,35.9334]
[1719259675276,30.74,128.98,128.77,35.9334]
[1719259675277,7.7599,128.87,128.77,35.9334]
[1719259675575,19.393,128.92,128.77,35.9334]
[1719259675576,7.7597,128.88,128.77,16.5195]
[1719259675777,7.7599,128.87,128.77,16.5195]
[1719259675975,6.2181,128.89,128.71,2.39469464]
[1719259676173,7.7626,128.83,128.72,7.7687]
[1719259676383,19.5687,128.88,128.72,19.4209]
[1719259676585,6.2181,128.89,128.75,7.7669]
[1719259676786,0.17,128.88,128.71,2.39469464]
[1719259676984,25.6158,128.89,128.71,25.80469464]
[1719259677198,7.7613,128.85,128.73,27.1875]
[1719259677492,7.761,128.85,128.73,27.1875]
[1719259677898,7.7604,128.86,128.74,7.7673]
[1719259678194,25.6158,128.89,128.73,19.4195]
[1719259678195,6.2181,128.89,128.73,19.4195]
[1719259678908,7.7638,128.81,128.71,2.39469464]
[1719259679086,19.4022,128.86,128.71,2.39469464]
[1719259679282,7.7626,128.83,128.71,2.39469464]
[1719259679498,0.34,128.88,128.72,19.4212]
[1719259680088,25.615,128.89,128.72,27.1894]
[1719259680505,7.7638,128.81,128.73,0.17]
[1719259680694,7.7628,128.82,128.73,0.17]
[1719259681098,7.7622,128.83,128.73,0.17]
[1719259681298,7.7603,128.86,128.73,0.17]
[1719259681696,7.7603,128.86,128.74,27.1859]
[1719259681888,7.7617,128.84,128.72,0.17]
[1719259682210,7.764,128.8,128.69,7.7705]
[1719259682586,15.86614243,128.84,128.68,100.0]
[1719259682789,30.74,128.86,128.73,7.768]
[1719259682989,30.74,128.86,128.71,19.4229]
[1719259683312,30.74,128.86,128.69,7.7705]
[1719259683313,7.7638,128.81,128.69,7.7705]
[1719259683517,7.7638,128.81,128.7,0.34]
[1719259683695,30.74,128.86,128.7,0.34]
[1719259683894,7.761,128.85,128.73,7.7677]
[1719259684223,7.7637,128.81,128.7,8.1098]
[1719259684391,50.1418,128.86,128.7,0.34]
[1719259684590,7.7628,128.82,128.7,0.34]
[1719259684803,30.74,128.86,128.71,19.4225]
[1719259685015,7.762,128.84,128.73,7.7681]
[1719259685214,7.7623,128.83,128.74,0.34]
[1719259685425,7.7619,128.84,128.74,0.34]
[1719259685707,7.7619,128.84,128.69,102.10306779]
[1719259685708,19.402,128.86,128.7,19.4248]
[1719259685911,7.7641,128.8,128.69,2.10306779]
[1719259686089,19.4049,128.84,128.69,2.10306779]
[1719259686090,7.7653,128.78,128.69,2.10306779]
[1719259686285,7.7656,128.78,128.67,24.0331]
[1719259686496,50.1474,128.82,128.67,16.2615]
[1719259686719,7.7664,128.76,128.67,16.2615]
[1719259687009,7.7659,128.77,128.67,16.2615]
[1719259687223,30.74,128.82,128.67,16.2615]
[1719259687429,7.7654,128.78,128.67,43.4615]
[1719259687717,7.7668,128.76,128.67,16.2615]
[1719259688292,7.7668,128.76,128.66,19.4104]
[1719259688293,7.7682,128.73,128.66,19.4104]
[1719259688502,7.7682,128.73,128.65,2.10372168]
[1719259688503,7.769,128.72,128.65,2.10372168]
[1719259688710,7.769,128.72,128.61,43.7793]
[1719259688919,7.7682,128.73,128.62,38.868354]
[1719259689121,19.415,128.77,128.63,7.774]
[1719259689296,7.7681,128.74,128.63,19.4345]
[1719259689489,30.74,128.78,128.63,19.4345]
[1719259689798,7.7658,128.77,128.66,27.2028]
[1719259689990,7.768,128.74,128.63,27.2089]
[1719259690195,19.4125,128.79,128.63,19.4348]
[1719259690404,6.1402,128.8,128.62,31.093654]
[1719259690605,7.7668,128.76,128.65,7.7728]
[1719259690805,7.7672,128.75,128.64,27.2067]
[1719259691011,7.7671,128.75,128.65,0.34]
[1719259691214,29.5502,128.8,128.62,31.093654]
[1719259691525,7.7695,128.71,128.61,16.5666]
[1719259691838,19.4167,128.76,128.61,47.660254]
[1719259692121,7.7676,128.74,128.63,7.7741]
[1719259692326,0.17,128.77,128.64,7.7733]
[1719259692620,19.5821,128.79,128.65,7.7724]
[1719259693116,19.5821,128.79,128.61,67.097954]
[1719259693331,7.7692,128.72,128.62,0.34]
[1719259693518,8.1116498,128.78,128.65,100.0]
[1719259693708,88.9514,128.85,128.68,19.4276]
[1719259693921,88.9514,128.85,128.69,8.1101]
[1719259694228,8.10867429,128.83,128.73,7.7681]
[1719259694404,25.8733,128.88,128.71,15.8033]
[1719259694405,19.402,128.86,128.71,15.8033]
[1719259694711,19.402,128.86,128.72,0.34]
[1719259694712,7.7627,128.82,128.72,0.34]
[1719259694908,19.402,128.86,128.71,15.8033]
[1719259695103,19.405,128.84,128.71,15.8033]
[1719259695303,38.8029,128.86,128.71,15.8033]
[1719259695304,19.4076,128.82,128.71,15.8033]
[1719259695510,7.767,128.75,128.65,35.4067]
[1719259695718,30.74,128.84,128.65,15.9748]
[1719259696009,30.74,128.84,128.69,7.7704]
[1719259696213,7.7635,128.81,128.7,7.77]
[1719259696423,50.1443,128.84,128.68,19.4271]
[1719259696620,7.7633,128.81,128.68,19.4271]
[1719259697036,7.7633,128.81,128.69,8.1104]
[1719259697199,19.5774,128.82,128.68,7.771]
[1719259697399,7.7663,128.77,128.67,0.17]
[1719259697604,7.7674,128.75,128.65,15.9748]
[1719259698024,7.767,128.75,128.65,15.9748]
[1719259698214,19.4104,128.8,128.65,15.9748]
[1719259698418,7.767,128.75,128.65,15.9748]
[1719259698609,7.767,128.75,128.65,23.7478]
[1719259698815,7.7698,128.71,128.62,2.19055666]
[1719259699013,7.7707,128.69,128.62,2.19055666]
[1719259699228,30.74,128.76,128.62,2.19055666]
[1719259699436,0.34,128.75,128.62,2.19055666]
[1719259699725,19.7585,128.75,128.62,2.19055666]
[1719259700128,7.7706,128.69,128.6,15.1469]
[1719259700436,7.7701,128.7,128.6,15.1469]
[1719259700732,7.7706,128.69,128.6,15.1469]
[1719259700931,19.4208,128.73,128.6,15.1469]
[1719259701231,0.34,128.72,128.6,15.1469]
[1719259701601,19.4242,128.71,128.58,30.74]
[1719259701807,7.7738,128.64,128.58,30.74]
[1719259702022,19.4275,128.69,128.55,17.59325818]
[1719259702023,7.7732,128.65,128.55,17.59325818]
[1719259702228,7.773,128.65,128.56,19.4275]
[1719259702624,19.4183,128.75,128.56,19.4275]
[1719259702928,7.7749,128.62,128.56,19.4275]
[1719259703233,19.4332,128.65,128.55,15.4879]
[1719259703533,7.7737,128.64,128.55,15.4879]
[1719259703706,7.7755,128.61,128.5,15.2653]
[1719259703909,19.4322,128.66,128.5,15.2653]
[1719259704122,0.34,128.65,128.52,27.2341]
[1719259704508,7.7736,128.64,128.52,35.0143]
[1719259704710,7.7736,128.64,128.52,27.2341]
[1719259705240,7.7731,128.65,128.53,7.7802]
[1719259705531,7.7734,128.65,128.53,7.7799]
[1719259705731,7.7724,128.66,128.54,19.4483]
[1719259706120,8.11474355,128.68,128.58,7.7771]
[1719259706315,38.5105,128.7,128.57,19.4442]
[1719259706316,7.7712,128.69,128.57,19.4442]
[1719259706621,7.7706,128.69,128.58,8.1166]
[1719259706821,7.7701,128.7,128.59,7.7764]
[1719259707011,6.452,128.73,128.59,7.7764]
[1719259707207,7.77,128.7,128.59,7.7764]
[1719259707424,45.2931,128.73,128.51,69.6445]
[1719259707622,7.7724,128.66,128.55,7.779]
[1719259707812,7.7713,128.68,128.56,7.9479]
[1719259708014,19.4241,128.71,128.57,7.9477]
[1719259708323,30.74,128.72,128.57,19.4436]
[1719259708523,19.4226,128.72,128.57,19.4436]
[1719259708737,7.7704,128.7,128.59,7.7766]
[1719259709040,7.7706,128.69,128.58,7.9471]
[1719259709335,7.7706,128.69,128.57,19.4436]
[1719259709336,19.4226,128.72,128.57,19.4436]
[1719259709534,0.34,128.71,128.58,0.17]
[1719259709838,7.7712,128.69,128.58,0.17]
[1719259710037,7.7712,128.69,128.58,7.7771]
[1719259710345,7.7712,128.68,128.57,27.2212]
[1719259710522,7.7712,128.68,128.57,27.2209]
[1719259710843,0.34,128.71,128.58,0.34]
[1719259711221,7.771,128.69,128.58,8.1171]
[1719259711534,7.771,128.69,128.58,7.9471]
[1719259711729,6.452,128.73,128.6,16.6022]
[1719259711935,6.452,128.73,128.61,7.7753]
[1719259711936,7.7693,128.72,128.61,7.7753]
[1719259712725,7.7682,128.73,128.62,7.7746]
[1719259713035,8.10966726,128.75,128.6,16.7722]
[1719259713241,8.10966726,128.75,128.61,0.17]
[1719259713438,19.4195,128.74,128.6,16.7722]
[1719259713630,7.7706,128.69,128.6,16.6022]
[1719259713823,19.4195,128.74,128.6,16.6022]
[1719259714138,8.10966726,128.75,128.63,7.7739]
[1719259714356,8.10966726,128.75,128.65,7.7727]
[1719259714515,7.7675,128.75,128.64,7.7732]
[1719259714927,56.4838,128.78,128.64,0.17]
[1719259715233,8.10611525,128.79,128.69,7.7702]
[1719259715537,7.764,128.8,128.69,7.7701]
[1719259715713,7.7634,128.81,128.7,7.9399]
[1719259715915,7.7634,128.81,128.69,7.7704]
[1719259716138,7.7634,128.81,128.68,0.34]
[1719259716139,7.7658,128.77,128.67,19.4289]
[1719259716326,7.7658,128.77,128.68,0.17]
[1719259716640,7.7638,128.81,128.7,7.7695]
[1719259716829,7.7646,128.79,128.69,19.4255]
[1719259717023,7.7635,128.81,128.7,8.1094]
[1719259717217,30.74,128.83,128.71,34.4762]
[1719259717432,30.74,128.83,128.81,51.94665]
[1719259718616,7.7627,128.82,128.81,51.94665]
[1719259719420,30.74,128.83,128.81,51.94665]
[1719259719615,7.7627,128.82,128.81,51.94665]
[1719259719930,30.74,128.83,128.81,51.94665]
[1719259720525,7.7616,128.84,128.81,51.94665]
[1719259720942,30.74,128.88,128.81,51.94665]
[1719259721150,7.758,128.9,128.81,51.94665]
[1719259721357,8.1017383,128.91,128.81,51.94665]
[1719259721518,7.7582,128.9,128.81,51.94665]
[1719259721919,30.74,128.94,128.81,86.49885]
[1719259722114,6.2993,128.95,128.81,86.49885]
[1719259722115,7.755,128.95,128.84,7.7614]
[1719259722342,7.7556,128.94,128.83,19.4045]
[1719259722943,7.7556,128.94,128.83,27.1666]
[1719259723241,7.7556,128.94,128.84,0.17]
[1719259723649,7.7564,128.93,128.82,0.17]
[1719259723944,7.7564,128.93,128.82,0.34]
[1719259724318,7.7569,128.92,128.82,0.17]
[1719259724521,35.51920229,128.96,128.81,67.09125]
[1719259724720,0.34,128.95,128.82,19.4058]
[1719259724926,7.7577,128.91,128.81,67.09125]
[1719259725159,19.728,128.95,128.81,67.09125]
[1719259725322,19.728,128.95,128.81,74.85455]
[1719259725522,19.391,128.93,128.81,67.09125]
[1719259725724,7.759,128.89,128.81,67.09125]
[1719259725933,7.7593,128.88,128.81,67.09125]
[1719259726225,19.3971,128.89,128.81,51.94665]
[1719259726424,7.762,128.84,128.81,51.94665]
[1719259726749,38.5002,128.87,128.81,51.94665]
[1719259727223,30.74,128.87,128.81,51.94665]
[1719259727421,7.7608,128.86,128.81,51.94665]
[1719259728128,6.1276,128.9,128.81,51.94665]
[1719259728339,7.7597,128.88,128.81,51.94665]
[1719259728520,30.74,128.89,128.81,51.94665]
[1719259728723,7.7599,128.87,128.81,51.94665]
[1719259728923,7.7604,128.86,128.81,51.94665]
[1719259729124,30.74,128.89,128.81,51.94665]
[1719259729320,7.7604,128.86,128.81,51.94665]
[1719259729622,7.7598,128.87,128.81,51.94665]
[1719259730245,30.74,128.89,128.81,51.94665]
[1719259730545,0.34,128.88,128.81,51.94665]
[1719259730758,7.7622,128.83,128.81,51.94665]
[1719259730920,7.7627,128.82,128.81,51.94665]
[1719259731122,7.9327,128.82,128.81,51.94665]
[1719259731341,7.7651,128.79,128.69,47.0655]
[1719259731545,30.74,128.81,128.69,47.0655]
[1719259731730,0.17,128.8,128.69,16.3255]